bitfinex/quotes_ETHUSD_20241217
["timestamp","ask_amount","ask_price","bid_price","bid_amount"]
[1734409446874,0.02986123,4005.1,4004.4,3.0]
[1734409447644,0.7968,4005.2,4004.4,3.0]
[1734409448277,0.7968,4005.2,4003.8,0.8123]
[1734409448568,0.17246473,4005.1,4004.4,3.0]
[1734409448723,0.17246473,4005.1,4003.8,0.8123]
[1734409448925,0.17246473,4005.1,4004.4,3.0]
[1734409449740,8.95,4005.0,4004.4,3.0]
[1734409449944,0.99192647,4004.9,4004.4,3.0]
[1734409450365,0.99192647,4004.9,4003.8,0.8123]
[1734409450542,8.95,4005.0,4003.8,0.8123]
[1734409450747,8.95,4005.0,4004.4,3.0]
[1734409450943,8.95,4005.0,4004.7,3.0]
[1734409451141,8.95,4005.0,4003.9,0.55]
[1734409451372,8.95,4005.0,4004.7,3.0]
[1734409451590,9.94192647,4005.0,4003.9,0.55]
[1734409451794,8.95,4005.0,4003.9,0.57497182]
[1734409452012,8.95,4005.0,4003.9,0.55]
[1734409452315,8.95,4005.0,4004.7,3.0]
[1734409452790,8.95,4005.0,4004.8,6.386095]
[1734409453004,8.95,4005.0,4004.4,0.8273]
[1734409454087,8.95,4005.0,4004.6,3.0]
[1734409454295,8.95,4005.0,4004.8,3.0]
[1734409454444,8.95,4005.0,4004.9,3.52624]
[1734409454978,8.95,4005.0,4004.9,6.52624]
[1734409455300,8.95,4005.0,4004.9,6.869025]
[1734409455791,8.95,4005.6,4005.0,3.0]
[1734409455956,9.92583,4005.6,4004.4,0.8273]
[1734409456162,9.92583,4005.6,4005.4,3.0]
[1734409456360,9.92583,4005.6,4004.5,0.55]
[1734409457205,9.92583,4005.6,4003.8,0.37834801]
[1734409457206,9.92583,4005.6,4005.4,3.0]
[1734409457370,9.92583,4005.6,4004.3,0.55]
[1734409457371,8.95,4005.6,4004.3,0.55]
[1734409457571,8.95,4005.6,4005.4,3.0]
[1734409459674,8.95,4005.6,4004.3,0.55]
[1734409459881,8.95,4005.6,4005.4,3.0]
[1734409460224,9.92583,4005.6,4005.4,3.0]
[1734409460427,0.8083,4005.7,4005.4,3.0]
[1734409461924,0.8083,4005.7,4004.9,0.8095]
[1734409462123,0.8083,4005.7,4005.4,3.0]
[1734409462624,0.8083,4005.7,4004.1,0.28236444]
[1734409462625,0.8083,4005.7,4004.5,0.8095]
[1734409462781,0.8083,4005.7,4005.4,3.0]
[1734409463276,0.8083,4005.7,4004.5,0.8095]
[1734409464124,8.97986123,4005.6,4004.2,0.8095]
[1734409464289,8.95,4005.4,4005.0,3.0]
[1734409464983,8.95,4005.4,4004.2,0.8095]
[1734409465187,8.95,4005.4,4004.2,1.06547586]
[1734409465378,8.95,4005.4,4005.1,3.0]
[1734409465897,8.95,4005.4,4004.3,0.55]
[1734409466094,8.95,4005.4,4004.5,0.55]
[1734409466331,8.95,4005.4,4005.2,3.0]
[1734409466822,8.95,4005.4,4004.9,0.8095]
[1734409467472,8.95,4005.4,4005.3,3.0]
[1734409467906,8.95,4005.7,4005.3,3.0]
[1734409468578,8.95,4005.7,4005.0,0.02496624]
[1734409469234,8.95,4005.7,4005.0,0.55]
[1734409469376,8.95,4005.7,4005.0,0.68595]
[1734409470330,8.95,4006.0,4005.9,3.0]
[1734409470686,9.7555,4006.1,4005.0,0.68595]
[1734409470885,8.95,4006.2,4005.6,0.8095]
[1734409471191,8.95,4006.2,4005.9,3.0]
[1734409471391,8.95,4006.2,4005.6,0.8095]
[1734409472935,0.97965273,4006.3,4005.6,0.8095]
[1734409473877,0.97965273,4006.3,4005.8,3.0]
[1734409474244,0.97965273,4006.3,4005.7,0.55]
[1734409474946,0.97965273,4006.3,4005.9,3.0]
[1734409475089,0.97965273,4006.3,4006.0,5.862182]
[1734409475432,0.97965273,4006.3,4006.1,3.0]
[1734409475612,0.97965273,4006.3,4006.1,5.392583]
[1734409475789,0.97965273,4006.3,4006.0,3.0]
[1734409476378,0.97965273,4006.3,4005.7,0.55]
[1734409476379,0.97965273,4006.3,4006.2,3.0]
[1734409476580,0.97965273,4006.3,4006.2,5.861348]
[1734409476979,0.97965273,4006.3,4006.2,5.573448]
[1734409478186,0.97965273,4006.3,4006.2,2.002593]
[1734409478541,0.97965273,4006.3,4005.9,3.0]
[1734409478737,0.97965273,4006.3,4006.1,3.0]
[1734409479062,0.97965273,4006.3,4006.2,2.300393]
[1734409479191,0.97965273,4006.3,4006.1,3.0]
[1734409479386,0.97965273,4006.3,4005.8,0.38095]
[1734409479623,0.97965273,4006.3,4006.0,3.0]
[1734409479808,0.97965273,4006.3,4006.2,3.0]
[1734409480003,0.97965273,4006.3,4005.6,0.8095]
[1734409480202,0.97965273,4006.3,4005.8,3.0]
[1734409480402,0.97965273,4006.3,4006.0,3.8]
[1734409480608,0.97965273,4006.3,4006.2,3.0]
[1734409480791,0.97965273,4006.3,4006.2,6.710693]
[1734409481000,0.97965273,4006.3,4006.2,6.728993]
[1734409483540,0.97965273,4006.3,4006.2,6.501923]
[1734409483835,0.97965273,4006.3,4006.2,6.00386]
[1734409484695,0.97965273,4006.3,4006.2,5.648923]
[1734409485536,0.97965273,4006.3,4006.0,0.8]
[1734409486046,0.7572,4006.1,4005.4,4.03653581]
[1734409486251,0.7572,4006.1,4005.2,1.03653581]
[1734409486410,0.7572,4006.1,4005.1,4.03653581]
[1734409486610,0.7572,4006.1,4005.1,1.03653581]
[1734409489043,0.7572,4006.1,4005.0,3.7549]
[1734409489044,8.95,4006.0,4005.2,1.03653581]
[1734409489486,8.95,4005.9,4005.2,1.03653581]
[1734409489666,0.7572,4005.8,4004.9,1.03653581]
[1734409489976,0.02986123,4005.7,4004.9,0.55]
[1734409490740,0.7572,4005.8,4004.9,0.55]
[1734409491268,0.78706123,4005.8,4004.9,0.55]
[1734409491877,0.7572,4005.8,4004.9,0.55]
[1734409492985,0.7572,4005.8,4004.9,1.58653581]
[1734409494872,8.95,4005.7,4004.9,1.58653581]
[1734409495188,8.95,4005.7,4005.1,1.03653581]
[1734409499074,8.95,4005.7,4005.2,1.03653581]
[1734409499715,8.95,4005.7,4005.4,3.0]
[1734409499896,8.95,4005.7,4005.6,4.03653581]
[1734409500090,8.95,4005.7,4005.6,10.56876881]
[1734409500291,8.95,4005.7,4005.6,8.97087681]
[1734409500499,8.95,4005.7,4005.6,8.74992332]
[1734409500808,9.7012,4006.2,4005.6,8.74992332]
[1734409501004,9.7012,4006.2,4005.7,1.04345732]
[1734409501816,0.97965273,4006.3,4005.7,1.04345732]
[1734409501817,0.97965273,4006.3,4005.9,3.0]
[1734409502026,0.97965273,4006.3,4006.1,3.0]
[1734409502188,0.97965273,4006.3,4006.0,1.04345732]
[1734409502387,0.97965273,4006.3,4006.2,3.0]
[1734409502720,0.97965273,4006.3,4006.2,5.674996]
[1734409504334,0.97965273,4006.3,4006.0,1.04345732]
[1734409504633,0.7512,4006.6,4006.3,3.0]
[1734409504828,0.7512,4006.6,4006.0,1.04345732]
[1734409505181,0.7512,4006.6,4006.2,3.0]
[1734409505518,0.00939005,4006.8,4006.4,3.0]
[1734409505722,0.00939005,4006.8,4006.1,3.7847]
[1734409506018,0.00939005,4006.8,4006.1,4.82815732]
[1734409506242,0.00939005,4006.8,4006.2,4.59345732]
[1734409506585,0.00939005,4006.8,4006.4,3.0]
[1734409506820,0.00939005,4006.8,4006.6,3.0]
[1734409507019,0.00939005,4006.8,4006.4,3.0]
[1734409507324,0.00939005,4006.8,4006.2,0.55]
[1734409510721,0.00939005,4006.8,4006.2,1.59345732]
[1734409512903,0.00939005,4006.8,4006.4,0.55]
[1734409513653,0.00939005,4006.8,4006.5,6.376958]
[1734409513794,0.00939005,4006.8,4006.6,3.0]
[1734409513993,0.00939005,4006.8,4006.7,3.244361]
[1734409514209,0.00939005,4006.8,4006.7,6.244361]
[1734409514638,0.00939005,4006.8,4006.7,2.127588]
[1734409514847,0.00939005,4006.8,4006.7,3.0]
[1734409515041,0.00939005,4006.8,4006.7,5.603812]
[1734409515506,0.00939005,4006.8,4006.7,2.127588]
[1734409515842,0.00939005,4006.8,4006.6,2.127588]
[1734409518130,0.00939005,4006.8,4006.4,4.59345732]
[1734409518353,0.00939005,4006.8,4006.4,3.55]
[1734409518658,0.00939005,4006.8,4006.4,0.55]
[1734409519627,0.02086594,4007.1,4006.4,0.55]
[1734409521551,0.02086594,4007.1,4006.4,1.59345732]
[1734409521874,0.02086594,4007.1,4006.4,2.28720719]
[1734409522175,0.02086594,4007.1,4006.5,4.04345732]
[1734409522345,0.02086594,4007.1,4006.5,1.04345732]
[1734409523365,0.02086594,4007.1,4006.4,1.59345732]
[1734409523565,0.02086594,4007.1,4006.8,0.8068]
[1734409523764,0.02086594,4007.1,4007.0,3.0]
[1734409524005,0.02086594,4007.1,4007.0,10.586824]
[1734409524300,0.02086594,4007.1,4007.0,8.675704]
[1734409525153,0.02086594,4007.1,4007.0,7.699111]
[1734409525966,0.02086594,4007.1,4007.0,9.25904783]
[1734409526166,0.02086594,4007.1,4007.0,10.30250515]
[1734409526556,0.02086594,4007.1,4007.0,9.25904783]
[1734409526755,0.02086594,4007.1,4007.0,10.81838925]
[1734409527057,0.02086594,4007.1,4007.0,9.25904783]
[1734409527609,9.7116,4009.2,4007.5,0.55]
[1734409527758,9.7116,4009.2,4007.9,1.3568]
[1734409527960,0.7616,4009.2,4008.4,0.55]
[1734409528570,0.7616,4009.2,4008.2,1.59149324]
[1734409528784,0.7616,4009.2,4008.4,0.55]
[1734409529748,0.7616,4009.2,4008.0,4.04149324]
[1734409529749,0.7873,4009.1,4008.0,0.55]
[1734409529956,0.7873,4008.8,4007.9,0.55]
[1734409530154,0.7873,4009.3,4007.5,0.7579]
[1734409530398,0.7873,4008.9,4007.5,0.1279606]
[1734409530554,0.7873,4008.7,4007.0,0.1268561]
[1734409530766,0.7873,4008.5,4007.0,0.1268561]
[1734409531198,0.7873,4008.5,4007.1,0.26094419]
[1734409531571,0.7873,4008.5,4007.1,0.54330863]
[1734409531972,8.95,4008.4,4007.1,0.54330863]
[1734409532219,8.95,4008.4,4006.3,1.04149324]
[1734409532220,0.7873,4008.0,4006.3,1.04149324]
[1734409532421,0.7873,4007.8,4006.2,0.7579]
[1734409532580,0.7873,4007.6,4006.2,0.7579]
[1734409532773,0.02986123,4007.5,4006.0,1.04149324]
[1734409532998,0.7873,4007.6,4006.1,0.33616331]
[1734409533589,0.7873,4007.6,4006.1,0.5971075]
[1734409533984,0.7873,4007.6,4006.3,0.55]
[1734409536724,0.7873,4007.6,4006.5,0.55]
[1734409537319,0.02986123,4007.5,4006.5,0.55]
[1734409537524,0.7873,4007.6,4006.5,0.55]
[1734409537525,0.7873,4007.6,4006.7,0.55]
[1734409537879,0.7873,4007.6,4006.4,0.7579]
[1734409537880,8.95,4007.5,4006.4,0.7579]
[1734409538089,8.95,4007.5,4006.5,0.55]
[1734409541929,8.95,4007.5,4006.5,1.59149324]
[1734409542135,0.7915,4008.8,4006.8,0.7882]
[1734409542450,8.95,4008.7,4007.3,0.55]
[1734409542753,8.95,4008.7,4007.5,0.55]
[1734409544052,8.95,4008.7,4007.5,0.57495004]
[1734409544252,8.95,4008.7,4007.8,0.55]
[1734409546432,0.7915,4008.8,4007.8,0.55]
[1734409546643,8.95,4009.1,4007.9,1.04149324]
[1734409546859,8.95,4009.1,4008.0,0.55]
[1734409547060,8.95,4009.1,4008.0,1.24419331]
[1734409547418,0.7925,4009.2,4008.2,0.55]
[1734409551257,8.95,4009.1,4008.2,0.55]
[1734409555040,0.7925,4009.5,4008.2,0.55]
[1734409557335,0.00939005,4009.7,4008.6,0.55]
[1734409557576,0.00939005,4009.7,4008.8,0.55]
[1734409557986,0.00939005,4009.7,4009.5,3.0]
[1734409558187,0.00939005,4009.7,4009.0,0.55]
[1734409562198,0.00939005,4009.7,4009.2,3.55]
[1734409562499,0.00939005,4009.7,4009.2,5.8163292]
[1734409562652,0.00939005,4009.7,4008.9,0.7934]
[1734409562653,0.00939005,4009.7,4009.0,0.55]
[1734409563395,0.25484836,4009.8,4009.0,0.55]
[1734409564390,1.06964836,4009.8,4009.0,0.55]
[1734409565003,0.25484836,4009.8,4009.0,0.55]
[1734409565807,0.25484836,4009.8,4009.1,0.02494075]
[1734409566012,0.25484836,4009.8,4009.5,0.55]
[1734409566212,0.25484836,4009.8,4009.7,3.55]
[1734409566540,0.8148,4010.6,4009.7,20.392748]
[1734409566688,0.8148,4010.6,4009.7,0.55]
[1734409566891,0.8148,4010.6,4009.5,0.55]
[1734409567092,0.8148,4010.6,4009.6,0.13366]
[1734409567343,0.8148,4010.6,4010.3,3.0]
[1734409568006,0.8148,4010.6,4009.6,0.13366]
[1734409568328,0.8148,4010.6,4010.3,3.0]
[1734409568554,0.8148,4010.6,4009.6,0.13366]
[1734409568848,0.8148,4010.6,4009.8,0.55]
[1734409569151,0.8148,4010.6,4010.3,3.0]
[1734409569361,0.8148,4010.6,4009.8,0.55]
[1734409569560,0.8148,4010.6,4010.3,3.0]
[1734409569759,0.8148,4010.6,4009.8,0.55]
[1734409569961,0.8148,4010.6,4010.3,3.0]
[1734409570165,0.8148,4011.0,4010.3,3.0]
[1734409570379,0.8148,4011.0,4009.9,0.7866]
[1734409570532,0.8148,4011.0,4009.8,0.55]
[1734409570533,0.8148,4011.0,4010.3,3.0]
[1734409571377,0.8148,4011.0,4009.6,0.55]
[1734409571521,0.8148,4011.0,4010.3,3.0]
[1734409572022,0.8148,4011.0,4009.6,0.55]
[1734409572345,0.8148,4011.0,4010.3,3.0]
[1734409572668,0.8148,4011.0,4009.6,0.55]
[1734409572831,0.8148,4011.0,4010.3,3.0]
[1734409573431,0.8148,4011.0,4009.7,0.14623413]
[1734409573659,0.8148,4011.0,4009.8,0.55]
[1734409573854,0.8148,4011.0,4009.7,0.14623413]
[1734409574074,0.8148,4011.0,4010.3,3.0]
[1734409574287,2.02399002,4011.0,4010.3,3.0]
[1734409575967,8.95,4010.9,4009.7,0.14623413]
[1734409576173,8.95,4010.9,4009.8,0.55]
[1734409576340,8.95,4010.9,4010.3,3.0]
[1734409577266,8.95,4010.9,4009.8,0.55]
[1734409577826,8.95,4010.9,4010.3,3.0]
[1734409578470,8.95,4010.9,4009.8,0.55]
[1734409578874,8.95,4010.9,4010.3,3.0]
[1734409579229,8.95,4010.9,4009.8,0.55]
[1734409579769,8.95,4010.9,4010.3,3.0]
[1734409580373,8.95,4010.9,4009.8,0.7108606]
[1734409580977,8.95,4010.9,4010.3,3.0]
[1734409582061,1.07300033,4010.7,4009.8,0.7108606]
[1734409582269,1.07300033,4010.7,4010.3,3.0]
[1734409582732,1.07300033,4010.4,4009.2,0.7909]
[1734409583080,1.07300033,4009.5,4008.7,0.12539496]
[1734409583378,1.07300033,4009.5,4008.8,15.338626]
[1734409583573,1.07300033,4009.5,4008.8,16.99232906]
[1734409583779,1.07300033,4009.5,4008.9,16.140691]
[1734409583950,1.07300033,4009.5,4008.9,9.337423]
[1734409584146,1.07300033,4009.5,4009.1,3.0]
[1734409584738,1.07300033,4009.5,4008.8,0.55]
[1734409584938,8.95,4009.6,4008.8,14.557067]
[1734409585139,8.95,4009.6,4008.8,2.13804432]
[1734409585342,8.95,4009.6,4008.8,0.55]
[1734409585991,8.95,4009.6,4008.8,0.83210963]
[1734409586897,8.95,4009.6,4009.1,0.55]
[1734409587058,8.95,4009.6,4009.3,3.55]
[1734409587393,8.95,4009.6,4009.5,4.3409]
[1734409587571,8.95,4009.6,4009.5,36.814883]
[1734409587769,8.95,4009.6,4009.5,32.366443]
[1734409588088,8.95,4010.5,4009.5,29.59793]
[1734409588283,8.95,4010.5,4009.5,1.3409]
[1734409588784,8.95,4010.5,4009.5,4.3409]
[1734409588981,8.95,4010.5,4009.7,0.55]
[1734409589387,0.02986123,4010.4,4009.6,0.55]
[1734409589878,8.95,4010.5,4009.6,0.55]
[1734409593467,8.95,4010.5,4009.6,1.87360287]
[1734409593685,8.95,4010.5,4009.8,0.55]
[1734409593893,0.7552,4010.6,4009.8,0.55]
[1734409594852,0.7552,4010.6,4009.8,0.67598968]
[1734409596187,8.95,4010.9,4009.8,0.67598968]
[1734409596188,9.7052,4010.9,4009.8,4.71748292]
[1734409596395,9.7052,4010.9,4009.8,1.71748292]
[1734409596546,9.7052,4010.9,4009.9,0.73146891]
[1734409597244,9.7052,4010.9,4010.0,0.7909]
[1734409597847,9.7052,4010.9,4010.1,0.55]
[1734409598176,8.95,4010.9,4010.1,4.59149324]
[1734409598373,8.95,4010.9,4010.2,0.79831478]
[1734409598587,8.95,4010.9,4010.3,0.55]
[1734409598778,8.95,4011.2,4010.5,0.55]
[1734409599105,8.95,4011.2,4010.6,0.7909]
[1734409599252,8.95,4011.2,4010.7,0.23823932]
[1734409599447,8.95,4011.2,4010.6,0.7909]
[1734409599874,8.95,4011.2,4010.7,0.55]
[1734409602078,8.95,4011.2,4010.5,1.04149324]
[1734409602284,8.95,4011.2,4010.4,1.04149324]
[1734409602659,8.95,4011.2,4010.3,1.04149324]
[1734409603065,8.95,4011.4,4010.3,1.04149324]
[1734409603269,8.95,4011.4,4010.5,1.04149324]
[1734409603684,8.95,4011.4,4010.4,4.04149324]
[1734409604369,8.95,4011.4,4010.4,1.04149324]
[1734409605114,8.95,4011.4,4010.3,3.63946331]
[1734409605115,0.792,4011.2,4010.3,1.04149324]
[1734409605262,0.02986123,4011.1,4010.3,0.55]
[1734409605484,0.02986123,4011.1,4010.3,1.59149324]
[1734409605659,0.02986123,4011.1,4010.3,0.55]
[1734409606074,8.95,4011.1,4010.3,0.55]
[1734409606291,8.95,4011.1,4010.3,1.59149324]
[1734409607159,8.95,4011.1,4010.3,5.29828535]
[1734409607365,8.95,4011.1,4010.4,1.04149324]
[1734409607570,8.95,4011.1,4010.4,4.04149324]
[1734409607786,8.95,4011.1,4010.3,5.29828535]
[1734409608314,8.95,4011.1,4010.3,1.04149324]
[1734409608463,0.02986123,4011.0,4010.3,1.04149324]
[1734409608658,8.95,4011.1,4010.3,1.04149324]
[1734409608887,8.95,4011.1,4010.2,4.83239324]
[1734409609096,8.95,4011.1,4010.3,1.04149324]
[1734409609260,8.95,4011.1,4010.4,1.04149324]
[1734409609590,8.95,4011.1,4010.3,1.04149324]
[1734409611079,8.95,4011.1,4010.4,1.04149324]
[1734409611738,8.95,4011.1,4010.4,1.8892552]
[1734409612039,8.95,4011.4,4010.6,1.04149324]
[1734409613184,8.95,4011.4,4010.7,1.86489324]
[1734409613379,8.95,4011.4,4010.7,4.86489324]
[1734409613795,8.95,4011.4,4010.7,5.92059371]
[1734409614226,8.95,4011.4,4010.8,4.04149324]
[1734409615137,8.95,4011.6,4010.8,4.04149324]
[1734409615686,8.95,4011.6,4010.8,3.0]
[1734409617232,8.95,4011.6,4010.8,3.74828336]
[1734409621836,8.95,4011.6,4010.9,1.32360287]
[1734409622330,8.95,4011.6,4010.9,0.28210963]
[1734409622738,8.95,4011.6,4010.8,4.7897766]
[1734409622935,8.95,4011.6,4010.8,3.74828336]
[1734409623237,0.7551,4011.3,4010.3,4.85219324]
[1734409623438,0.7551,4011.3,4010.4,0.55]
[1734409623656,0.7551,4011.3,4010.4,1.59149324]
[1734409623805,0.7551,4011.3,4010.5,0.69644331]
[1734409625839,1.07243042,4011.1,4010.3,0.8107]
[1734409626002,0.02986123,4011.0,4010.2,0.55]
[1734409626751,0.7551,4010.8,4010.0,1.85219324]
[1734409626911,0.02986123,4010.7,4010.0,1.85219324]
[1734409627246,0.02986123,4010.7,4010.0,0.8107]
[1734409627916,0.02986123,4010.7,4009.8,1.04149324]
[1734409628116,3.43554016,4010.7,4009.8,1.04149324]
[1734409628326,3.43554016,4010.7,4009.3,0.28210963]
[1734409628327,0.7551,4010.2,4009.3,1.04149324]
[1734409628551,0.7551,4010.2,4009.1,1.56223986]
[1734409628552,0.02986123,4010.1,4009.1,1.04149324]
[1734409628856,9.7051,4010.2,4009.0,0.8107]
[1734409629350,0.02986123,4010.1,4009.0,0.8107]
[1734409629498,1.2059901,4010.0,4009.0,0.8107]
[1734409630014,0.02986123,4009.9,4009.0,0.93744355]
[1734409630347,9.7051,4009.8,4008.7,1.04149324]
[1734409630503,0.7551,4009.3,4008.7,1.04149324]
[1734409630842,0.02986123,4009.2,4008.5,1.04149324]
[1734409631042,0.7551,4009.3,4008.5,1.04149324]
[1734409631266,0.02986123,4009.2,4008.5,1.04149324]
[1734409631594,0.7551,4009.3,4008.5,1.04149324]
[1734409632343,0.7551,4009.3,4008.4,1.04149324]
[1734409632582,0.7551,4009.3,4008.4,4.91637819]
[1734409632846,0.02986123,4009.2,4008.4,1.04149324]
[1734409633366,8.95,4009.1,4008.2,4.04149324]
[1734409633644,0.78496123,4009.0,4008.1,1.04149324]
[1734409633865,0.78496123,4009.0,4008.0,5.13430287]
[1734409634143,0.78496123,4009.0,4008.0,1.09280963]
[1734409634327,1.84164413,4009.0,4008.0,1.09280963]
[1734409637104,1.84164413,4009.0,4008.0,0.28210963]
[1734409639122,8.95,4008.9,4008.0,0.28210963]
[1734409641096,0.02986123,4008.8,4007.3,1.04149324]
[1734409641211,2.32493976,4008.6,4007.3,0.7563]
[1734409641416,0.7937,4008.5,4007.3,0.7563]
[1734409641667,0.7937,4008.3,4007.3,0.7563]
[1734409641958,0.7937,4008.3,4007.4,0.30182381]
[1734409642262,0.7937,4008.3,4007.4,0.58393344]
[1734409642565,0.7937,4008.3,4007.5,0.55]
[1734409642863,8.95,4008.9,4008.1,3.0]
[1734409643513,8.95,4008.9,4007.5,1.03342095]
[1734409643861,8.95,4008.9,4008.1,3.0]
[1734409645827,0.7907,4008.8,4008.1,3.0]
[1734409646028,0.7907,4008.4,4007.1,0.88737603]
[1734409646265,0.7907,4008.2,4007.1,0.88737603]
[1734409646581,0.02986123,4008.1,4007.1,0.88737603]
[1734409647025,2.35480099,4008.1,4007.1,0.761]
[1734409647371,2.35480099,4008.1,4006.7,0.41013715]
[1734409647372,0.7907,4007.9,4006.8,0.761]
[1734409647523,0.7907,4007.7,4006.7,0.28210963]
[1734409647728,0.02986123,4007.6,4006.7,0.28210963]
[1734409648448,0.7907,4007.7,4006.8,0.55]
[1734409649480,0.7907,4007.7,4007.4,3.0]
[1734409650278,0.7907,4007.7,4006.8,0.55]
[1734409650644,0.7907,4007.7,4007.4,3.0]
[1734409651282,8.97986123,4007.6,4007.4,3.0]
[1734409651484,8.95,4007.6,4007.4,3.0]
[1734409651707,8.95,4007.6,4006.6,0.55]
[1734409651997,8.95,4007.6,4007.4,3.0]
[1734409652342,8.95,4007.6,4006.6,0.55]
[1734409652594,8.95,4007.6,4007.4,3.0]
[1734409652975,8.95,4007.6,4006.6,0.55]
[1734409653300,0.02986123,4007.5,4007.4,3.0]
[1734409653501,8.95,4007.6,4006.6,0.55]
[1734409653651,8.95,4007.6,4007.3,3.0]
[1734409654293,8.95,4007.6,4006.8,0.55]
[1734409654490,8.95,4007.6,4006.8,0.83210963]
[1734409656283,8.95,4007.6,4007.4,3.0]
[1734409656766,8.95,4007.6,4006.8,0.83210963]
[1734409657398,8.95,4007.6,4007.4,3.0]
[1734409658098,8.95,4007.6,4006.8,0.83210963]
[1734409658329,8.95,4007.6,4007.4,3.0]
[1734409658457,8.95,4007.6,4006.6,0.55]
[1734409658458,1.07461141,4007.3,4006.6,0.55]
[1734409658653,0.02986123,4007.2,4007.1,3.0]
[1734409658866,1.07461141,4007.3,4007.1,3.0]
[1734409659124,0.7907,4007.2,4006.6,0.55]
[1734409659328,0.7907,4007.2,4006.4,0.55]
[1734409659833,0.7907,4007.2,4006.3,0.55]
[1734409660003,0.7907,4007.2,4007.1,3.0]
[1734409660428,8.95,4007.1,4006.2,0.88538784]
[1734409663236,8.95,4007.1,4006.2,0.761]
[1734409665375,8.95,4007.1,4006.2,0.89285102]
[1734409668731,8.95,4006.9,4005.5,0.8204]
[1734409669031,8.95,4006.7,4005.5,0.8204]
[1734409670398,8.95,4006.7,4005.6,0.55]
[1734409670620,2.32888402,4006.6,4005.0,1.10250963]
[1734409670805,0.7824,4006.5,4005.0,1.2650523]
[1734409671001,0.7824,4006.5,4005.0,1.39003154]
[1734409671192,1.29861453,4006.4,4005.1,0.16918554]
[1734409671392,1.29861453,4006.4,4005.0,0.94537924]
[1734409671587,0.81226123,4006.3,4005.0,0.94537924]
[1734409671999,0.81226123,4006.3,4005.1,0.55]
[1734409672540,0.81226123,4006.3,4005.0,0.55]
[1734409672721,8.95,4006.0,4005.0,0.55]
[1734409673041,0.02986123,4005.9,4005.0,0.55]
[1734409673397,8.95,4006.0,4005.0,0.55]
[1734409673794,8.95,4006.0,4005.8,3.0]
[1734409674800,8.95,4006.0,4005.2,0.55]
[1734409674994,8.95,4006.0,4005.2,0.71148113]
[1734409676141,8.95,4006.0,4005.2,0.16148113]
[1734409676300,8.95,4006.0,4005.1,0.8159]
[1734409677549,0.02986123,4005.9,4005.1,0.8159]
[1734409677991,0.02986123,4005.9,4005.0,0.55]
[1734409678449,0.8247,4006.1,4005.0,0.55]
[1734409678450,0.02986123,4006.0,4005.0,0.55]
[1734409678649,0.8247,4005.9,4004.8,0.8159]
[1734409678946,0.02986123,4005.8,4004.8,0.8159]
[1734409679317,0.8247,4005.9,4004.8,0.8159]
[1734409679721,0.8247,4005.9,4004.8,0.93855634]
[1734409679924,0.8247,4005.9,4004.8,0.88855634]
[1734409679925,1.1400584,4005.9,4004.8,0.88855634]
[1734409681111,8.95,4005.8,4004.8,0.88855634]
[1734409683129,8.95,4005.8,4004.8,1.01379036]
[1734409685166,8.95,4005.8,4004.4,1.04149324]
[1734409685167,0.8089,4005.3,4004.4,1.04149324]
[1734409685372,0.8089,4005.3,4004.2,0.8173]
[1734409685535,0.8089,4005.3,4004.2,0.94448666]
[1734409685536,8.95,4005.2,4004.2,0.94448666]
[1734409686672,8.95,4005.2,4004.2,1.35188017]
[1734409686825,8.95,4005.2,4004.4,3.0]
[1734409687033,8.95,4005.2,4004.6,3.0]
[1734409687224,8.95,4005.2,4004.8,3.0]
[1734409687565,8.95,4005.2,4004.9,11.743778]
[1734409687777,8.95,4005.2,4004.8,3.0]
[1734409688072,8.95,4005.2,4004.4,1.52223695]
[1734409688073,8.95,4005.2,4005.0,3.0]
[1734409688255,0.8089,4005.3,4005.2,3.0]
[1734409688437,0.8089,4005.3,4005.0,3.0]
[1734409688636,0.8089,4005.3,4005.2,3.0]
[1734409688841,0.8089,4005.3,4005.2,2.630568]
[1734409689077,0.8089,4005.3,4005.2,3.0]
[1734409689264,0.8089,4005.3,4005.2,5.625568]
[1734409689446,0.8089,4005.3,4004.5,0.55]
[1734409690077,0.8089,4005.3,4004.5,1.49241171]
[1734409696278,0.8089,4005.3,4004.7,3.0]
[1734409696486,0.8089,4005.3,4004.9,3.0]
[1734409696683,0.8089,4005.3,4005.0,11.075043]
[1734409696889,0.7816,4006.6,4005.1,3.28210963]
[1734409697189,0.7816,4006.4,4005.1,0.28210963]
[1734409697354,2.15627861,4006.3,4005.1,0.28210963]
[1734409698538,2.18613984,4006.3,4005.0,0.55]
[1734409698780,2.15627861,4006.3,4005.0,0.55]
[1734409699352,2.18613984,4006.3,4005.0,0.55]
[1734409699653,1.19177398,4006.2,4005.0,0.55]
[1734409699860,0.7816,4006.0,4005.0,0.55]
[1734409700156,0.02986123,4005.9,4005.0,0.55]
[1734409700594,0.7816,4006.0,4005.0,0.55]
[1734409701324,0.7816,4006.0,4005.0,1.59149324]
[1734409701629,0.7816,4006.0,4005.1,0.70620682]
[1734409703296,0.7816,4006.0,4005.0,1.59149324]
[1734409705129,0.7816,4006.0,4005.1,1.04149324]
[1734409705341,0.7816,4006.0,4005.2,1.04149324]
[1734409709449,0.7816,4006.0,4005.1,3.0]